[Event "Titled Tuesday Blitz June 13 Early 2023"]
[White "MKlose11"]
[Black "Caruana, Fabiano"]
[BlackFideId "2020009"]
[WhiteElo "2529"]
[BlackElo "2832"]
[Result "0-1"]
[Round "1"]
[TimeControl "180+2"]
[Date "2023.06.13"]
[WhiteClock "0:00:35"]
[BlackClock "0:00:50"]
[Board "5"]

1. e4 {[%clk 0:03:00]}  c5 {[%clk 0:02:59]} 2. Nc3 {[%clk 0:02:55]}  d6 {[%clk 0:02:59]} 3. g3 {[%clk 0:02:44]}  Nc6 {[%clk 0:02:57]} 4. Bg2 {[%clk 0:02:44]}  g6 {[%clk 0:02:57]} 5. d3 {[%clk 0:02:44]}  Bg7 {[%clk 0:02:58]} 6. Be3 {[%clk 0:02:40]}  Nf6 {[%clk 0:02:56]} 7. h3 {[%clk 0:02:39]}  O-O {[%clk 0:02:52]} 8. Qd2 {[%clk 0:02:39]}  Rb8 {[%clk 0:02:52]} 9. Bh6 {[%clk 0:02:39]}  b5 {[%clk 0:02:52]} 10. Bxg7 {[%clk 0:02:39]}  Kxg7 {[%clk 0:02:53]} 11. Nge2 {[%clk 0:02:39]}  b4 {[%clk 0:02:53]} 12. Nd1 {[%clk 0:02:39]}  a5 {[%clk 0:02:51]} 13. O-O {[%clk 0:02:39]}  Ba6 {[%clk 0:02:47]} 14. Ne3 {[%clk 0:02:39]}  Nd4 {[%clk 0:02:45]} 15. f4 {[%clk 0:02:37]}  a4 {[%clk 0:02:33]} 16. g4 {[%clk 0:02:36]}  e6 {[%clk 0:02:27]} 17. f5 {[%clk 0:02:25]}  Nd7 {[%clk 0:02:21]} 18. Rf2 {[%clk 0:02:10]}  Qh4 {[%clk 0:02:10]} 19. Raf1 {[%clk 0:02:07]}  Ne5 {[%clk 0:02:08]} 20. Nf4 {[%clk 0:01:47]}  exf5 {[%clk 0:01:34]} 21. gxf5 {[%clk 0:01:43]}  a3 {[%clk 0:01:24]} 22. b3 {[%clk 0:01:31]}  Rbe8 {[%clk 0:01:20]} 23. Ned5 {[%clk 0:01:27]}  Bb7 {[%clk 0:01:19]} 24. f6+ {[%clk 0:01:26]}  Kh8 {[%clk 0:01:19]} 25. Kh2 {[%clk 0:01:14]}  Ng4+ {[%clk 0:01:18]} 26. Kg1 {[%clk 0:01:14]}  Nxf2 {[%clk 0:01:18]} 27. Rxf2 {[%clk 0:01:14]}  Re5 {[%clk 0:01:16]} 28. Qe3 {[%clk 0:01:10]}  Qg5 {[%clk 0:01:10]} 29. Qd2 {[%clk 0:01:01]}  Bxd5 {[%clk 0:01:09]} 30. Nxd5 {[%clk 0:01:01]}  Qxd2 {[%clk 0:01:09]} 31. Rxd2 {[%clk 0:01:02]}  Rxd5 {[%clk 0:01:03]} 32. exd5 {[%clk 0:01:02]}  Re8 {[%clk 0:01:04]} 33. Be4 {[%clk 0:01:00]}  h5 {[%clk 0:01:01]} 34. Kf2 {[%clk 0:01:00]}  Kh7 {[%clk 0:01:01]} 35. h4 {[%clk 0:00:59]}  Kh6 {[%clk 0:01:01]} 36. Kg3 {[%clk 0:00:52]}  Nb5 {[%clk 0:01:00]} 37. Rd1 {[%clk 0:00:44]}  Nc3 {[%clk 0:01:00]} 38. Ra1 {[%clk 0:00:45]}  g5 {[%clk 0:00:59]} 39. hxg5+ {[%clk 0:00:45]}  Kxg5 {[%clk 0:01:00]} 40. Kf3 {[%clk 0:00:45]}  Kxf6 {[%clk 0:00:59]} 41. Kf4 {[%clk 0:00:46]}  Rg8 {[%clk 0:00:59]} 42. Rh1 {[%clk 0:00:45]}  Rg4+ {[%clk 0:00:58]} 43. Kf3 {[%clk 0:00:45]}  Kg5 {[%clk 0:00:58]} 44. Rh2 {[%clk 0:00:40]}  Nxa2 {[%clk 0:00:54]} 45. c4 {[%clk 0:00:40]}  Nc3 {[%clk 0:00:54]} 46. Ke3 {[%clk 0:00:38]}  f5 {[%clk 0:00:54]} 47. Bf3 {[%clk 0:00:38]}  h4 {[%clk 0:00:53]} 48. Rh1 {[%clk 0:00:35]}  a2 {[%clk 0:00:51]} 49. Bxg4 {[%clk 0:00:36]}  fxg4 {[%clk 0:00:51]} 50. d4 {[%clk 0:00:36]}  cxd4+ {[%clk 0:00:50]} 51. Kxd4 {[%clk 0:00:36]}  Nb1 {[%clk 0:00:50]} 52. c5 {[%clk 0:00:35]}  a1=Q+ {[%clk 0:00:50]} 0-1


[Site "https://www.chess.com"]

[Event "Titled Tuesday Blitz June 13 Early 2023"]
[White "Fedoseev, Vladimir"]
[Black "Orujov2008"]
[WhiteFideId "24130737"]
[WhiteElo "2743"]
[BlackElo "2529"]
[Result "1-0"]
[Round "1"]
[TimeControl "180+2"]
[Date "2023.06.13"]
[WhiteClock "0:00:12"]
[BlackClock "0:00:00"]
[Board "6"]

1. e4 {[%clk 0:02:39]}  e5 {[%clk 0:02:58]} 2. Bc4 {[%clk 0:02:38]}  Nf6 {[%clk 0:02:57]} 3. Nc3 {[%clk 0:02:38]}  Nxe4 {[%clk 0:02:58]} 4. Qh5 {[%clk 0:02:37]}  Nd6 {[%clk 0:02:55]} 5. Qxe5+ {[%clk 0:02:35]}  Qe7 {[%clk 0:02:55]} 6. Qxe7+ {[%clk 0:02:33]}  Bxe7 {[%clk 0:02:56]} 7. Bb3 {[%clk 0:02:32]}  O-O {[%clk 0:02:53]} 8. Nd5 {[%clk 0:02:32]}  Bd8 {[%clk 0:02:52]} 9. d4 {[%clk 0:02:31]}  c6 {[%clk 0:02:52]} 10. Bf4 {[%clk 0:02:31]}  Nf5 {[%clk 0:02:49]} 11. Nc7 {[%clk 0:02:15]}  Bxc7 {[%clk 0:02:48]} 12. Bxc7 {[%clk 0:02:16]}  Nxd4 {[%clk 0:02:48]} 13. Bd6 {[%clk 0:02:16]}  Re8+ {[%clk 0:02:45]} 14. Kf1 {[%clk 0:02:11]}  Nf5 {[%clk 0:02:32]} 15. Bf4 {[%clk 0:02:03]}  d5 {[%clk 0:02:27]} 16. Nf3 {[%clk 0:02:04]}  Na6 {[%clk 0:02:24]} 17. c4 {[%clk 0:02:03]}  Nc5 {[%clk 0:01:56]} 18. cxd5 {[%clk 0:01:54]}  Nxb3 {[%clk 0:01:50]} 19. axb3 {[%clk 0:01:55]}  cxd5 {[%clk 0:01:51]} 20. g4 {[%clk 0:01:55]}  Ne7 {[%clk 0:01:44]} 21. h3 {[%clk 0:01:54]}  Nc6 {[%clk 0:01:42]} 22. Kg2 {[%clk 0:01:52]}  d4 {[%clk 0:01:36]} 23. Rhd1 {[%clk 0:01:44]}  Be6 {[%clk 0:01:36]} 24. Nxd4 {[%clk 0:01:43]}  Nxd4 {[%clk 0:01:32]} 25. Rxd4 {[%clk 0:01:44]}  Bxb3 {[%clk 0:01:32]} 26. f3 {[%clk 0:01:36]}  Be6 {[%clk 0:01:22]} 27. Rb4 {[%clk 0:01:29]}  b6 {[%clk 0:01:18]} 28. Kf2 {[%clk 0:01:26]}  Re7 {[%clk 0:01:12]} 29. Rxb6 {[%clk 0:01:24]}  Rc8 {[%clk 0:01:07]} 30. Rb4 {[%clk 0:01:21]}  Rc2+ {[%clk 0:01:03]} 31. Kg3 {[%clk 0:01:21]}  h6 {[%clk 0:01:03]} 32. Re1 {[%clk 0:01:19]}  Rd7 {[%clk 0:00:58]} 33. h4 {[%clk 0:01:15]}  Rd3 {[%clk 0:00:51]} 34. Rb8+ {[%clk 0:01:08]}  Kh7 {[%clk 0:00:49]} 35. g5 {[%clk 0:01:08]}  hxg5 {[%clk 0:00:42]} 36. hxg5 {[%clk 0:01:06]}  Bd5 {[%clk 0:00:41]} 37. Be3 {[%clk 0:00:53]}  Rb3 {[%clk 0:00:30]} 38. Rd8 {[%clk 0:00:46]}  Be6 {[%clk 0:00:26]} 39. Bd4 {[%clk 0:00:42]}  Rd2 {[%clk 0:00:22]} 40. Re4 {[%clk 0:00:41]}  Rbxb2 {[%clk 0:00:17]} 41. Rh4+ {[%clk 0:00:37]}  Kg6 {[%clk 0:00:17]} 42. Rg8 {[%clk 0:00:38]}  Rxd4 {[%clk 0:00:10]} 43. Rxd4 {[%clk 0:00:37]}  Kxg5 {[%clk 0:00:08]} 44. Rxg7+ {[%clk 0:00:36]}  Kf6 {[%clk 0:00:08]} 45. Rh7 {[%clk 0:00:36]}  a5 {[%clk 0:00:08]} 46. Ra4 {[%clk 0:00:25]}  Rb5 {[%clk 0:00:03]} 47. Rh6+ {[%clk 0:00:25]}  Ke7 {[%clk 0:00:03]} 48. Rhh4 {[%clk 0:00:24]}  Bb3 {[%clk 0:00:03]} 49. Rad4 {[%clk 0:00:22]}  a4 {[%clk 0:00:03]} 50. Rhe4+ {[%clk 0:00:23]}  Kf8 {[%clk 0:00:04]} 51. Rd8+ {[%clk 0:00:21]}  Kg7 {[%clk 0:00:02]} 52. Rg4+ {[%clk 0:00:22]}  Kf6 {[%clk 0:00:03]} 53. Ra8 {[%clk 0:00:21]}  Rc5 {[%clk 0:00:02]} 54. Ra6+ {[%clk 0:00:21]}  Ke7 {[%clk 0:00:02]} 55. Rb4 {[%clk 0:00:21]}  Kf8 {[%clk 0:00:03]} 56. f4 {[%clk 0:00:20]}  Kg7 {[%clk 0:00:03]} 57. Kg4 {[%clk 0:00:20]}  Rc1 {[%clk 0:00:03]} 58. f5 {[%clk 0:00:20]}  Rg1+ {[%clk 0:00:03]} 59. Kf4 {[%clk 0:00:20]}  Rf1+ {[%clk 0:00:03]} 60. Ke5 {[%clk 0:00:19]}  Re1+ {[%clk 0:00:04]} 61. Kd4 {[%clk 0:00:16]}  Rd1+ {[%clk 0:00:04]} 62. Kc3 {[%clk 0:00:16]}  Rc1+ {[%clk 0:00:04]} 63. Kd2 {[%clk 0:00:14]}  Rd1+ {[%clk 0:00:05]} 64. Ke2 {[%clk 0:00:14]}  Rc1 {[%clk 0:00:04]} 65. Rg4+ {[%clk 0:00:14]}  Kf8 {[%clk 0:00:03]} 66. f6 {[%clk 0:00:12]}  Ke8 {[%clk 0:00:04]} 67. Rd4 {[%clk 0:00:12]}  Rc8 {[%clk 0:00:04]} 68. Ra5 {[%clk 0:00:12]}  Be6 {[%clk 0:00:00]} 69. Rh5 {[%clk 0:00:12]} 1-0


[Site "https://www.chess.com"]

[Event "Titled Tuesday Blitz June 13 Early 2023"]
[White "Chernomordik, Pavel"]
[Black "Dubov, Daniil"]
[WhiteFideId "2804530"]
[BlackFideId "24126055"]
[WhiteElo "2193"]
[BlackElo "2793"]
[Result "0-1"]
[Round "1"]
[TimeControl "180+2"]
[Date "2023.06.13"]
[WhiteClock "0:00:02"]
[BlackClock "0:01:01"]
[Board "7"]

1. e4 {[%clk 0:02:57]}  c5 {[%clk 0:02:58]} 2. Nc3 {[%clk 0:02:54]}  e6 {[%clk 0:02:58]} 3. f4 {[%clk 0:02:53]}  a6 {[%clk 0:02:56]} 4. g3 {[%clk 0:02:52]}  b5 {[%clk 0:02:56]} 5. Bg2 {[%clk 0:02:51]}  Bb7 {[%clk 0:02:57]} 6. Qe2 {[%clk 0:02:51]}  Nc6 {[%clk 0:02:56]} 7. Nf3 {[%clk 0:02:51]}  Nd4 {[%clk 0:02:56]} 8. Nxd4 {[%clk 0:02:43]}  cxd4 {[%clk 0:02:57]} 9. Nd1 {[%clk 0:02:40]}  Rc8 {[%clk 0:02:56]} 10. c3 {[%clk 0:02:39]}  Bc5 {[%clk 0:02:51]} 11. Nf2 {[%clk 0:02:34]}  Nf6 {[%clk 0:02:49]} 12. O-O {[%clk 0:02:32]}  d3 {[%clk 0:02:47]} 13. Qxd3 {[%clk 0:02:23]}  Ng4 {[%clk 0:02:47]} 14. Qe2 {[%clk 0:02:14]}  Bxf2+ {[%clk 0:02:46]} 15. Rxf2 {[%clk 0:02:04]}  Nxf2 {[%clk 0:02:47]} 16. Qxf2 {[%clk 0:02:04]}  O-O {[%clk 0:02:37]} 17. d3 {[%clk 0:02:01]}  f5 {[%clk 0:02:36]} 18. Be3 {[%clk 0:01:57]}  e5 {[%clk 0:02:27]} 19. Rd1 {[%clk 0:01:31]}  d6 {[%clk 0:02:18]} 20. Bh3 {[%clk 0:01:22]}  Qc7 {[%clk 0:01:49]} 21. Bg2 {[%clk 0:00:47]}  Rce8 {[%clk 0:01:44]} 22. fxe5 {[%clk 0:00:29]}  fxe4 {[%clk 0:01:31]} 23. exd6 {[%clk 0:00:22]}  Qxd6 {[%clk 0:01:25]} 24. Qd2 {[%clk 0:00:16]}  Qe6 {[%clk 0:01:15]} 25. d4 {[%clk 0:00:14]}  Qxa2 {[%clk 0:01:08]} 26. h4 {[%clk 0:00:12]}  Qd5 {[%clk 0:01:07]} 27. Qe2 {[%clk 0:00:10]}  Rf3 {[%clk 0:01:05]} 28. Bxf3 {[%clk 0:00:08]}  exf3 {[%clk 0:01:06]} 29. Qf2 {[%clk 0:00:07]}  Qe6 {[%clk 0:01:04]} 30. Kh2 {[%clk 0:00:02]}  Qxe3 {[%clk 0:01:01]} 0-1


[Site "https://www.chess.com"]

[Event "Titled Tuesday Blitz June 13 Early 2023"]
[White "Le, Tuan Minh"]
[Black "Brunner, Nicolas"]
[WhiteFideId "12401153"]
[BlackFideId "620246"]
[WhiteElo "2566"]
[BlackElo "2319"]
[Result "1-0"]
[Round "1"]
[TimeControl "180+2"]
[Date "2023.06.13"]
[WhiteClock "0:00:12"]
[BlackClock "0:00:06"]
[Board "8"]

1. d4 {[%clk 0:02:57]}  Nf6 {[%clk 0:02:59]} 2. Nf3 {[%clk 0:02:55]}  e6 {[%clk 0:02:59]} 3. Bf4 {[%clk 0:02:53]}  b6 {[%clk 0:02:59]} 4. e3 {[%clk 0:02:52]}  Bb7 {[%clk 0:02:59]} 5. c4 {[%clk 0:02:53]}  c5 {[%clk 0:02:56]} 6. Nc3 {[%clk 0:02:50]}  cxd4 {[%clk 0:02:53]} 7. Nxd4 {[%clk 0:02:47]}  a6 {[%clk 0:02:50]} 8. Rc1 {[%clk 0:02:40]}  d6 {[%clk 0:02:50]} 9. Nf3 {[%clk 0:02:38]}  Be7 {[%clk 0:02:49]} 10. Be2 {[%clk 0:02:38]}  O-O {[%clk 0:02:48]} 11. O-O {[%clk 0:02:39]}  Qc7 {[%clk 0:02:46]} 12. h3 {[%clk 0:02:35]}  Nbd7 {[%clk 0:02:46]} 13. Qc2 {[%clk 0:02:26]}  Rac8 {[%clk 0:02:45]} 14. Rfd1 {[%clk 0:02:26]}  Qb8 {[%clk 0:02:45]} 15. Qd2 {[%clk 0:02:19]}  Ne5 {[%clk 0:02:41]} 16. Nxe5 {[%clk 0:02:15]}  dxe5 {[%clk 0:02:41]} 17. Bg3 {[%clk 0:02:09]}  Rfd8 {[%clk 0:02:41]} 18. Qc2 {[%clk 0:02:08]}  h6 {[%clk 0:02:41]} 19. Qb3 {[%clk 0:02:06]}  Bc6 {[%clk 0:02:26]} 20. a3 {[%clk 0:02:02]}  Qb7 {[%clk 0:02:26]} 21. Bf1 {[%clk 0:02:01]}  e4 {[%clk 0:02:21]} 22. Rxd8+ {[%clk 0:01:57]}  Rxd8 {[%clk 0:02:21]} 23. Rd1 {[%clk 0:01:58]}  Rc8 {[%clk 0:02:20]} 24. Qc2 {[%clk 0:01:52]}  a5 {[%clk 0:02:16]} 25. Bd6 {[%clk 0:01:39]}  Bxd6 {[%clk 0:02:10]} 26. Rxd6 {[%clk 0:01:40]}  Nd7 {[%clk 0:02:09]} 27. b4 {[%clk 0:01:37]}  axb4 {[%clk 0:02:06]} 28. axb4 {[%clk 0:01:38]}  Ne5 {[%clk 0:01:56]} 29. b5 {[%clk 0:01:36]}  Be8 {[%clk 0:01:55]} 30. Rd4 {[%clk 0:01:26]}  f5 {[%clk 0:01:55]} 31. Qb3 {[%clk 0:01:18]}  Nd7 {[%clk 0:01:46]} 32. Na4 {[%clk 0:01:17]}  Nc5 {[%clk 0:01:34]} 33. Nxc5 {[%clk 0:01:16]}  Rxc5 {[%clk 0:01:35]} 34. Rd6 {[%clk 0:01:10]}  Kf7 {[%clk 0:01:31]} 35. Qb2 {[%clk 0:01:05]}  Qc7 {[%clk 0:01:28]} 36. Rd1 {[%clk 0:01:02]}  Bd7 {[%clk 0:01:02]} 37. Be2 {[%clk 0:00:57]}  e5 {[%clk 0:01:00]} 38. Qa1 {[%clk 0:00:41]}  Be6 {[%clk 0:00:58]} 39. Rc1 {[%clk 0:00:42]}  Kf6 {[%clk 0:00:42]} 40. Qa8 {[%clk 0:00:30]}  Qc8 {[%clk 0:00:36]} 41. Qa4 {[%clk 0:00:25]}  Qc7 {[%clk 0:00:32]} 42. Bf1 {[%clk 0:00:25]}  h5 {[%clk 0:00:30]} 43. h4 {[%clk 0:00:23]}  Qd6 {[%clk 0:00:28]} 44. Rd1 {[%clk 0:00:20]}  Qc7 {[%clk 0:00:26]} 45. Rc1 {[%clk 0:00:21]}  Qd6 {[%clk 0:00:26]} 46. Qa1 {[%clk 0:00:21]}  Qc7 {[%clk 0:00:24]} 47. Qc3 {[%clk 0:00:20]}  Qd6 {[%clk 0:00:20]} 48. Ra1 {[%clk 0:00:20]}  Qc7 {[%clk 0:00:19]} 49. Ra4 {[%clk 0:00:21]}  Rxb5 {[%clk 0:00:18]} 50. Qa1 {[%clk 0:00:19]}  Rc5 {[%clk 0:00:18]} 51. Ra7 {[%clk 0:00:19]}  Qc6 {[%clk 0:00:16]} 52. Qd1 {[%clk 0:00:18]}  Qc8 {[%clk 0:00:10]} 53. Qd6 {[%clk 0:00:12]}  Rc6 {[%clk 0:00:06]} 54. Qe7+ {[%clk 0:00:12]} 1-0


[Site "https://www.chess.com"]

[Event "Titled Tuesday Blitz June 13 Early 2023"]
[White "Sarana, Alexey"]
[Black "Bethke, Richard"]
[WhiteFideId "24133795"]
[BlackFideId "12959243"]
[WhiteElo "2714"]
[BlackElo "2369"]
[Result "1-0"]
[Round "1"]
[TimeControl "180+2"]
[Date "2023.06.13"]
[WhiteClock "0:00:24"]
[BlackClock "0:00:00"]
[Board "10"]

1. c4 {[%clk 0:02:59]}  Nf6 {[%clk 0:02:49]} 2. Nc3 {[%clk 0:02:59]}  e6 {[%clk 0:02:48]} 3. Nf3 {[%clk 0:02:59]}  d5 {[%clk 0:02:49]} 4. d4 {[%clk 0:02:59]}  Be7 {[%clk 0:02:50]} 5. Bf4 {[%clk 0:02:58]}  O-O {[%clk 0:02:50]} 6. a3 {[%clk 0:02:55]}  c5 {[%clk 0:02:49]} 7. dxc5 {[%clk 0:02:56]}  Bxc5 {[%clk 0:02:50]} 8. Qc2 {[%clk 0:02:50]}  Nc6 {[%clk 0:02:48]} 9. e3 {[%clk 0:02:50]}  Qe7 {[%clk 0:02:43]} 10. Bd3 {[%clk 0:02:31]}  d4 {[%clk 0:02:26]} 11. exd4 {[%clk 0:02:30]}  Nxd4 {[%clk 0:02:27]} 12. Nxd4 {[%clk 0:02:28]}  Bxd4 {[%clk 0:02:28]} 13. O-O {[%clk 0:02:27]}  h6 {[%clk 0:02:19]} 14. Nb5 {[%clk 0:02:26]}  e5 {[%clk 0:02:15]} 15. Rfe1 {[%clk 0:02:20]}  Qc5 {[%clk 0:02:06]} 16. Bg3 {[%clk 0:02:14]}  e4 {[%clk 0:01:54]} 17. Bxe4 {[%clk 0:01:46]}  Nxe4 {[%clk 0:01:53]} 18. Qxe4 {[%clk 0:01:45]}  Bxb2 {[%clk 0:01:51]} 19. Bd6 {[%clk 0:01:40]}  Qc6 {[%clk 0:01:43]} 20. Qxc6 {[%clk 0:01:12]}  bxc6 {[%clk 0:01:43]} 21. Ra2 {[%clk 0:01:13]}  cxb5 {[%clk 0:01:36]} 22. Bxf8 {[%clk 0:01:13]}  Kxf8 {[%clk 0:01:08]} 23. Rxb2 {[%clk 0:01:12]}  bxc4 {[%clk 0:01:09]} 24. f3 {[%clk 0:00:59]}  Be6 {[%clk 0:01:04]} 25. Rb7 {[%clk 0:00:58]}  a5 {[%clk 0:01:02]} 26. Rc1 {[%clk 0:00:56]}  g6 {[%clk 0:00:55]} 27. Rc3 {[%clk 0:00:55]}  h5 {[%clk 0:00:55]} 28. h4 {[%clk 0:00:55]}  Kg7 {[%clk 0:00:55]} 29. Kf2 {[%clk 0:00:55]}  Kf6 {[%clk 0:00:56]} 30. Ke3 {[%clk 0:00:56]}  Rd8 {[%clk 0:00:37]} 31. Rb5 {[%clk 0:00:54]}  Ra8 {[%clk 0:00:24]} 32. Kf4 {[%clk 0:00:53]}  Ra6 {[%clk 0:00:22]} 33. Rc5 {[%clk 0:00:48]}  a4 {[%clk 0:00:19]} 34. Ke3 {[%clk 0:00:46]}  Rb6 {[%clk 0:00:19]} 35. Ra5 {[%clk 0:00:45]}  Rb3 {[%clk 0:00:19]} 36. Kd4 {[%clk 0:00:45]}  Rb2 {[%clk 0:00:17]} 37. g3 {[%clk 0:00:42]}  Rd2+ {[%clk 0:00:17]} 38. Ke3 {[%clk 0:00:41]}  Rg2 {[%clk 0:00:17]} 39. Kf4 {[%clk 0:00:40]}  Rd2 {[%clk 0:00:11]} 40. Rxa4 {[%clk 0:00:39]}  Re2 {[%clk 0:00:12]} 41. Ra6 {[%clk 0:00:38]}  Ke7 {[%clk 0:00:12]} 42. Rb6 {[%clk 0:00:38]}  f6 {[%clk 0:00:12]} 43. Re3 {[%clk 0:00:33]}  g5+ {[%clk 0:00:11]} 44. hxg5 {[%clk 0:00:34]}  fxg5+ {[%clk 0:00:12]} 45. Ke4 {[%clk 0:00:34]}  Rd2 {[%clk 0:00:07]} 46. f4 {[%clk 0:00:26]}  h4 {[%clk 0:00:04]} 47. gxh4 {[%clk 0:00:25]}  gxh4 {[%clk 0:00:05]} 48. f5 {[%clk 0:00:25]}  Bd5+ {[%clk 0:00:04]} 49. Kf4+ {[%clk 0:00:25]}  Kd7 {[%clk 0:00:04]} 50. Rh3 {[%clk 0:00:23]}  Rd4+ {[%clk 0:00:04]} 51. Ke5 {[%clk 0:00:23]}  Rd3 {[%clk 0:00:02]} 52. Rxd3 {[%clk 0:00:23]}  cxd3 {[%clk 0:00:02]} 53. Rd6+ {[%clk 0:00:23]}  Ke7 {[%clk 0:00:00]} 54. Rxd5 {[%clk 0:00:24]} 1-0


[Site "https://www.chess.com"]

[Event "Titled Tuesday Blitz June 13 Early 2023"]
[White "Horak, Martin"]
[Black "Andreikin, Dmitry"]
[WhiteFideId "367095"]
[BlackFideId "4158814"]
[WhiteElo "2091"]
[BlackElo "2736"]
[Result "0-1"]
[Round "1"]
[TimeControl "180+2"]
[Date "2023.06.13"]
[WhiteClock "0:00:13"]
[BlackClock "0:02:17"]
[Board "11"]

1. d4 {[%clk 0:02:55]}  Nf6 {[%clk 0:02:59]} 2. c4 {[%clk 0:02:55]}  e6 {[%clk 0:02:58]} 3. Nf3 {[%clk 0:02:52]}  Bb4+ {[%clk 0:02:57]} 4. Bd2 {[%clk 0:02:51]}  a5 {[%clk 0:02:57]} 5. g3 {[%clk 0:02:49]}  b6 {[%clk 0:02:56]} 6. Bg2 {[%clk 0:02:49]}  Bb7 {[%clk 0:02:56]} 7. O-O {[%clk 0:02:49]}  O-O {[%clk 0:02:55]} 8. Nc3 {[%clk 0:02:24]}  d6 {[%clk 0:02:54]} 9. Rc1 {[%clk 0:02:20]}  Nbd7 {[%clk 0:02:33]} 10. a3 {[%clk 0:02:04]}  Bxc3 {[%clk 0:02:34]} 11. Bxc3 {[%clk 0:02:05]}  Ne4 {[%clk 0:02:34]} 12. Nd2 {[%clk 0:02:01]}  Nxc3 {[%clk 0:02:33]} 13. Rxc3 {[%clk 0:02:00]}  Bxg2 {[%clk 0:02:34]} 14. Kxg2 {[%clk 0:02:01]}  f5 {[%clk 0:02:35]} 15. f4 {[%clk 0:01:25]}  Nf6 {[%clk 0:02:32]} 16. Qc2 {[%clk 0:01:23]}  c5 {[%clk 0:02:27]} 17. d5 {[%clk 0:00:51]}  exd5 {[%clk 0:02:26]} 18. cxd5 {[%clk 0:00:51]}  Qd7 {[%clk 0:02:26]} 19. e4 {[%clk 0:00:50]}  Rae8 {[%clk 0:02:25]} 20. Re1 {[%clk 0:00:44]}  Nxd5 {[%clk 0:02:24]} 21. Qb3 {[%clk 0:00:39]}  Qf7 {[%clk 0:02:23]} 22. Rd3 {[%clk 0:00:38]}  Nf6 {[%clk 0:02:20]} 23. Qxf7+ {[%clk 0:00:37]}  Kxf7 {[%clk 0:02:21]} 24. Rxd6 {[%clk 0:00:36]}  Rd8 {[%clk 0:02:19]} 25. e5 {[%clk 0:00:27]}  Rxd6 {[%clk 0:02:19]} 26. exd6 {[%clk 0:00:27]}  Rd8 {[%clk 0:02:20]} 27. Nc4 {[%clk 0:00:25]}  Ne4 {[%clk 0:02:18]} 28. Nxb6 {[%clk 0:00:21]}  Rxd6 {[%clk 0:02:17]} 29. Nc4 {[%clk 0:00:21]}  Rd4 {[%clk 0:02:18]} 30. Rc1 {[%clk 0:00:21]}  Ke6 {[%clk 0:02:18]} 31. Kf3 {[%clk 0:00:13]}  Rxc4 {[%clk 0:02:17]} 0-1


[Site "https://www.chess.com"]

[Event "Titled Tuesday Blitz June 13 Early 2023"]
[White "Duda, Jan-Krzysztof"]
[Black "Sowul, Bartosz"]
[WhiteFideId "1170546"]
[BlackFideId "1137590"]
[WhiteElo "2783"]
[BlackElo "2188"]
[Result "1-0"]
[Round "1"]
[TimeControl "180+2"]
[Date "2023.06.13"]
[WhiteClock "0:00:43"]
[BlackClock "0:00:00"]
[Board "12"]

1. d4 {[%clk 0:02:54]}  Nf6 {[%clk 0:03:00]} 2. c4 {[%clk 0:02:54]}  c5 {[%clk 0:03:00]} 3. d5 {[%clk 0:02:54]}  b5 {[%clk 0:03:00]} 4. cxb5 {[%clk 0:02:54]}  a6 {[%clk 0:03:01]} 5. bxa6 {[%clk 0:02:54]}  g6 {[%clk 0:03:01]} 6. Nc3 {[%clk 0:02:54]}  Bg7 {[%clk 0:03:02]} 7. e4 {[%clk 0:02:55]}  O-O {[%clk 0:03:02]} 8. e5 {[%clk 0:02:53]}  Ne8 {[%clk 0:03:02]} 9. h4 {[%clk 0:02:54]}  Bxe5 {[%clk 0:02:57]} 10. h5 {[%clk 0:02:54]}  Qb6 {[%clk 0:02:50]} 11. Nf3 {[%clk 0:02:51]}  Bg7 {[%clk 0:02:47]} 12. hxg6 {[%clk 0:02:50]}  fxg6 {[%clk 0:02:46]} 13. Ng5 {[%clk 0:02:22]}  Nf6 {[%clk 0:02:35]} 14. d6 {[%clk 0:02:20]}  e6 {[%clk 0:02:23]} 15. Nxh7 {[%clk 0:01:34]}  Nxh7 {[%clk 0:02:13]} 16. Qg4 {[%clk 0:01:35]}  c4 {[%clk 0:01:53]} 17. Ne4 {[%clk 0:01:25]}  Rf5 {[%clk 0:01:37]} 18. Qxg6 {[%clk 0:01:18]}  Nf8 {[%clk 0:01:37]} 19. Qg4 {[%clk 0:01:13]}  Nxa6 {[%clk 0:01:02]} 20. Bd2 {[%clk 0:00:56]}  Kf7 {[%clk 0:00:15]} 21. Bxc4 {[%clk 0:00:44]}  Ke8 {[%clk 0:00:02]} 22. Qxg7 {[%clk 0:00:43]}  Rf7 {[%clk 0:00:00]} 23. Nf6+ {[%clk 0:00:43]} 1-0


[Site "https://www.chess.com"]

[Event "Titled Tuesday Blitz June 13 Early 2023"]
[White "Shimanov, Aleksandr"]
[Black "Balla, Tamas-Kristof"]
[WhiteFideId "4198603"]
[BlackFideId "1208497"]
[WhiteElo "2631"]
[BlackElo "2334"]
[Result "1-0"]
[Round "1"]
[TimeControl "180+2"]
[Date "2023.06.13"]
[WhiteClock "0:00:33"]
[BlackClock "0:00:12"]
[Board "16"]

1. e4 {[%clk 0:02:54]}  c5 {[%clk 0:03:00]} 2. Nc3 {[%clk 0:02:46]}  Nc6 {[%clk 0:02:59]} 3. Bb5 {[%clk 0:02:43]}  Nd4 {[%clk 0:02:56]} 4. Bc4 {[%clk 0:02:41]}  e6 {[%clk 0:02:51]} 5. Nge2 {[%clk 0:02:38]}  Nf6 {[%clk 0:02:35]} 6. O-O {[%clk 0:02:34]}  a6 {[%clk 0:02:22]} 7. a4 {[%clk 0:02:31]}  d5 {[%clk 0:02:14]} 8. exd5 {[%clk 0:02:30]}  exd5 {[%clk 0:02:15]} 9. Ba2 {[%clk 0:02:29]}  Be6 {[%clk 0:02:02]} 10. Nxd4 {[%clk 0:02:27]}  cxd4 {[%clk 0:02:03]} 11. Ne2 {[%clk 0:02:27]}  d3 {[%clk 0:02:03]} 12. cxd3 {[%clk 0:02:27]}  Bd6 {[%clk 0:01:58]} 13. f4 {[%clk 0:02:08]}  O-O {[%clk 0:01:35]} 14. d4 {[%clk 0:02:02]}  Re8 {[%clk 0:01:23]} 15. f5 {[%clk 0:01:52]}  Bd7 {[%clk 0:01:09]} 16. d3 {[%clk 0:01:50]}  h6 {[%clk 0:01:09]} 17. Nc3 {[%clk 0:01:45]}  Qc7 {[%clk 0:01:05]} 18. h3 {[%clk 0:01:44]}  Rac8 {[%clk 0:01:03]} 19. Nxd5 {[%clk 0:01:34]}  Nxd5 {[%clk 0:01:03]} 20. Bxd5 {[%clk 0:01:35]}  Qa5 {[%clk 0:00:39]} 21. Qf3 {[%clk 0:01:28]}  Rc2 {[%clk 0:00:39]} 22. f6 {[%clk 0:01:20]}  Ree2 {[%clk 0:00:30]} 23. Bxf7+ {[%clk 0:01:17]}  Kh7 {[%clk 0:00:20]} 24. Bd5 {[%clk 0:00:56]}  Rxg2+ {[%clk 0:00:20]} 25. Qxg2 {[%clk 0:00:55]}  Rxg2+ {[%clk 0:00:21]} 26. Bxg2 {[%clk 0:00:55]}  Qb4 {[%clk 0:00:17]} 27. Be3 {[%clk 0:00:53]}  Bc6 {[%clk 0:00:10]} 28. d5 {[%clk 0:00:43]}  Bxa4 {[%clk 0:00:11]} 29. f7 {[%clk 0:00:40]}  Bc2 {[%clk 0:00:10]} 30. Be4+ {[%clk 0:00:38]}  Kh8 {[%clk 0:00:11]} 31. Rac1 {[%clk 0:00:34]}  Qxb2 {[%clk 0:00:11]} 32. f8=Q+ {[%clk 0:00:33]}  Bxf8 {[%clk 0:00:12]} 33. Rxf8# {[%clk 0:00:33]} 1-0


[Site "https://www.chess.com"]